bitfinex/quotes_ETHUSD_20250827
["timestamp","ask_amount","ask_price","bid_price","bid_amount"]
[1756303497362,0.0192,4597.8,4596.1,6.2027577]
[1756303497576,4.0462,4597.8,4597.6,2.1750379]
[1756303497774,4.0462,4597.8,4595.9,3.84981684]
[1756303497934,0.0192,4597.8,4597.7,2.17500054]
[1756303499959,0.0192,4597.8,4597.7,2.19323127]
[1756303500286,1e-08,4597.8,4597.7,2.19323127]
[1756303500444,1e-08,4597.8,4597.7,2.17500054]
[1756303500788,0.02,4599.8,4599.4,2.17419663]
[1756303500930,0.02,4599.8,4598.4,2.17466945]
[1756303501269,0.02,4599.8,4597.8,2.17494976]
[1756303501272,0.02,4599.8,4599.7,2.17405482]
[1756303501448,0.02,4599.8,4599.5,2.17414123]
[1756303501637,0.02,4599.8,4598.5,0.21746695]
[1756303501833,0.02,4599.8,4598.0,3.687]
[1756303502041,0.02,4599.8,4599.7,2.17405482]
[1756303502255,0.02,4599.8,4599.5,2.17410991]
[1756303502565,0.02,4599.8,4599.7,2.17405482]
[1756303503264,1e-08,4599.8,4599.7,2.17405482]
[1756303503581,1e-08,4599.8,4599.7,2.77617318]
[1756303508158,0.02,4600.8,4600.7,2.17358228]
[1756303508559,0.002,4601.4,4600.8,2.17353503]
[1756303509086,0.002,4601.4,4601.3,2.17329885]
[1756303509258,0.002,4601.4,4601.3,8.32015394]
[1756303509584,0.002,4601.4,4601.3,8.30196576]
[1756303509954,0.002,4601.4,4601.3,4.28096576]
[1756303510784,0.002,4601.4,4600.8,4.02]
[1756303510950,0.002,4601.4,4601.1,2.17336998]
[1756303511151,0.002,4601.4,4601.3,2.17329885]
[1756303511784,0.002,4601.4,4601.3,2.46949885]
[1756303512002,0.002,4601.4,4601.3,2.48768703]
[1756303512165,0.002,4601.4,4601.3,3.33760455]
[1756303512393,1e-08,4601.4,4601.3,5.66960455]
[1756303512594,0.4676,4602.7,4602.4,2.17275638]
[1756303512917,0.4676,4602.7,4602.6,2.172685]
[1756303513220,1.694,4604.8,4603.7,2.17216586]
[1756303513530,0.022,4604.8,4603.7,6.19116586]
[1756303513834,0.36202744,4604.8,4603.7,7.02750617]
[1756303513979,0.36202744,4604.8,4603.7,7.68750617]
[1756303514483,0.36202744,4604.8,4603.7,7.02650617]
[1756303514705,0.36202744,4604.8,4603.7,2.17216586]
[1756303514889,0.36202744,4604.8,4603.7,6.19016586]
[1756303515089,2.19365947,4604.8,4603.7,6.19016586]
[1756303515310,0.02714617,4604.7,4603.7,6.19016586]
[1756303515634,1.672,4604.4,4603.1,2.17244867]
[1756303515916,3.02714853,4604.3,4602.6,1.672]
[1756303516090,0.02714853,4604.3,4602.8,4.018]
[1756303516288,2.17217373,4603.7,4602.7,4.017]
[1756303516488,0.21921737,4603.7,4602.7,4.017]
[1756303516693,2.17207162,4603.9,4602.7,6.18962041]
[1756303516878,0.02714912,4604.2,4602.6,5.689]
[1756303517078,0.02714912,4604.2,4602.6,1.672]
[1756303517295,0.02714912,4604.2,4602.7,4.017]
[1756303517496,3.02714853,4604.3,4602.7,4.017]
[1756303517920,0.02715207,4603.7,4602.3,2.17278466]
[1756303518123,0.02715207,4603.7,4601.9,4.016]
[1756303518124,0.24907126,4603.7,4601.9,4.016]
[1756303518284,2.1723558,4603.3,4602.5,2.17272904]
[1756303518485,3.0,4603.3,4601.8,0.02]
[1756303518704,0.02715443,4603.3,4602.1,2.17291588]
[1756303518931,2.17247105,4603.1,4602.2,2.17286365]
[1756303519100,2.17249833,4603.0,4602.2,2.17286365]
[1756303519419,2.1725435,4602.9,4601.8,2.1930295]
[1756303519735,0.34015059,4603.3,4601.9,2.19119345]
[1756303520014,3.34015059,4603.3,4601.9,2.17301549]
[1756303520245,0.34015059,4603.3,4601.9,2.17301549]
[1756303520384,0.34015059,4603.3,4601.8,0.02]
[1756303520385,0.34015059,4603.3,4602.9,2.17250808]
[1756303520694,2.17253719,4603.0,4601.4,1.672]
[1756303520886,2.17250484,4603.0,4602.1,2.17292003]
[1756303521081,2.1725392,4603.0,4602.1,2.17292003]
[1756303521316,2.1724018,4603.2,4601.7,2.17310391]
[1756303521317,2.19890713,4602.9,4601.7,2.17310391]
[1756303521493,2.17267884,4602.7,4601.7,2.17306759]
[1756303521688,2.17267884,4602.7,4601.5,2.1732023]
[1756303521689,0.02635856,4602.6,4601.8,2.17306271]
[1756303521911,0.02635856,4602.6,4601.9,2.17300348]
[1756303522114,1.672,4603.0,4602.3,2.17282398]
[1756303522314,1.672,4603.0,4602.5,2.17272495]
[1756303522513,1.672,4603.0,4602.2,2.17286583]
[1756303522514,0.34014647,4602.9,4602.1,2.17292105]
[1756303522714,0.34014647,4602.9,4602.2,0.61869211]
[1756303522918,2.19212638,4603.8,4602.4,2.17277941]
[1756303522919,0.02,4603.8,4602.4,2.17277941]
[1756303523119,0.02,4603.8,4602.6,0.66]
[1756303523310,0.02,4603.8,4603.7,2.17216586]
[1756303526412,0.19995681,4603.4,4602.8,2.17255729]
[1756303526624,0.2392128,4603.6,4602.0,2.17296739]
[1756303526625,0.19995681,4603.3,4602.0,2.17296739]
[1756303526940,2.39955045,4603.2,4602.3,2.17278355]
[1756303527236,2.17256386,4602.9,4602.0,2.17292542]
[1756303527394,0.19995681,4603.1,4601.8,1.671]
[1756303527395,2.63696388,4602.8,4601.8,1.671]
[1756303527590,2.63696388,4602.8,4602.0,2.1729647]
[1756303527591,0.19995681,4602.7,4602.0,2.1729647]
[1756303527910,2.43700707,4602.8,4602.3,2.17282431]
[1756303527911,0.19995681,4602.6,4602.3,2.17282431]
[1756303528228,0.002,4603.0,4602.4,2.17277941]
[1756303528229,0.19995681,4602.5,4602.4,2.17277941]
[1756303528589,0.19995681,4602.5,4601.8,5.683]
[1756303528590,0.19995681,4602.5,4601.8,7.85601708]
[1756303528793,0.19995681,4602.4,4601.8,1.671]
[1756303528997,2.39998232,4602.3,4601.4,2.17325161]
[1756303529194,0.43995504,4602.2,4601.4,2.17325161]
[1756303529498,0.19995681,4602.1,4601.0,5.683]
[1756303529804,0.19995681,4602.0,4601.5,2.17320231]
[1756303530008,0.19995681,4601.9,4601.5,2.17320231]
[1756303530203,0.19995681,4601.8,4601.6,2.17314661]
[1756303530404,7.19995681,4601.7,4601.6,2.17314661]
[1756303530932,3.0,4601.6,4601.3,0.2962]
[1756303531145,0.19995681,4601.5,4601.3,0.2962]
[1756303531299,0.19995681,4601.4,4601.3,0.2962]
[1756303532540,0.19995681,4601.4,4601.3,2.46949885]
[1756303532905,0.19995681,4601.4,4601.3,0.2962]
[1756303533615,0.19995681,4601.4,4601.3,0.15464371]
[1756303533616,5.5745934,4601.4,4601.3,0.15464371]
[1756303534043,3.0,4601.3,4600.8,0.02]
[1756303534204,2.17348779,4600.9,4600.8,0.02]
[1756303534403,12.60340914,4600.9,4600.8,0.02]
[1756303534645,12.57624055,4600.9,4600.8,0.02]
[1756303534825,10.40275276,4600.9,4600.8,0.02]
[1756303535033,10.74307094,4600.9,4600.8,0.02]
[1756303535345,10.40266582,4600.9,4600.8,0.02]
[1756303535711,7.40266582,4600.9,4600.8,0.3305]
[1756303536047,7.20133291,4600.9,4600.8,2.50403503]
[1756303537012,0.20133291,4600.9,4600.8,2.97180054]
[1756303537212,0.20133291,4600.9,4600.8,6.98180054]
[1756303537649,0.20133291,4600.9,4600.8,2.50403503]
[1756303537960,0.20133291,4600.9,4600.8,0.3305]
[1756303538639,0.20133291,4600.9,4600.8,2.50403503]
[1756303539259,0.20133291,4600.9,4600.8,2.52302913]
[1756303539555,0.20133291,4600.9,4600.8,2.50403503]
[1756303539756,0.20133291,4600.9,4600.8,2.97179939]
[1756303540060,0.20133291,4600.9,4600.8,6.98079939]
[1756303540229,0.3129,4601.4,4601.3,2.17329885]
[1756303540430,0.51418262,4601.4,4601.3,2.17329885]
[1756303540962,0.3129,4601.4,4601.3,2.83329885]
[1756303541257,0.3129,4601.4,4601.3,2.85719306]
[1756303541434,0.3129,4601.4,4601.3,6.18129885]
[1756303542059,0.3129,4601.4,4601.3,2.83329885]
[1756303542358,0.3129,4601.4,4601.3,2.17329885]
[1756303542556,0.51435477,4601.4,4601.3,6.18129885]
[1756303543057,0.20145477,4601.4,4601.3,2.17329885]
[1756303543759,7.51435477,4601.4,4600.8,0.02]
[1756303543966,3.228621,4601.3,4600.8,0.02]
[1756303544259,0.40294917,4601.2,4600.8,0.02]
[1756303544448,7.02716741,4601.1,4600.8,0.02]
[1756303544629,2.17348779,4600.9,4600.8,0.02]
[1756303544834,5.60382828,4600.9,4600.8,0.02]
[1756303545052,3.40316334,4600.9,4600.8,0.02]
[1756303545253,0.40316334,4600.9,4600.8,2.19353503]
[1756303545535,0.20157756,4600.9,4600.8,2.50403503]
[1756303545735,0.20077756,4600.9,4600.8,6.51103503]
[1756303546058,0.20077756,4600.9,4600.8,6.51203503]
[1756303546260,0.20077756,4600.9,4600.8,7.38060052]
[1756303546565,0.3129,4601.4,4601.3,2.17329885]
[1756303546762,0.3129,4601.4,4601.3,7.85229885]
[1756303547262,0.4632,4602.3,4602.2,2.17287384]
[1756303547437,0.4632,4602.3,4602.2,7.85087384]
[1756303547636,0.4632,4602.3,4602.2,8.85325607]
[1756303547937,0.4632,4602.3,4602.2,9.51325607]
[1756303549343,1e-08,4602.3,4602.2,9.51325607]
[1756303549544,0.002,4604.0,4602.9,2.17254339]
[1756303549730,0.002,4604.0,4602.9,6.17754339]
[1756303549934,0.002,4604.0,4602.9,7.0125596]
[1756303550141,0.002,4604.0,4602.9,7.6725596]
[1756303550434,0.002,4604.0,4603.9,2.1720715]
[1756303550746,0.002,4604.0,4603.9,6.1770715]
[1756303551348,0.002,4604.0,4603.9,7.12054434]
[1756303552055,0.002,4604.0,4603.9,3.11554434]
[1756303552256,0.002,4604.0,4603.9,7.11954434]
[1756303552440,0.002,4604.0,4603.9,3.11554434]
[1756303552639,0.002,4604.0,4603.9,6.1760715]
[1756303552957,0.002,4604.0,4603.9,6.8360715]
[1756303553157,0.022,4604.8,4604.7,2.17169413]
[1756303553469,0.022,4604.8,4604.7,4.003]
[1756303553775,0.022,4604.8,4604.7,6.17469413]
[1756303553953,0.022,4604.8,4603.9,2.1720323]
[1756303554158,0.022,4604.8,4604.7,2.17169413]
[1756303554469,0.022,4604.8,4604.5,2.17178752]
[1756303554973,0.022,4604.8,4604.1,2.17196783]
[1756303555137,0.022,4604.8,4604.7,2.17169413]
[1756303556046,0.022,4604.8,4604.5,4.002]
[1756303556246,0.022,4604.8,4603.8,1.672]
[1756303556456,0.022,4604.8,4604.6,2.17173611]
[1756303556863,2.19368523,4604.8,4603.8,1.672]
[1756303557058,2.1988427,4604.7,4603.7,4.001]
[1756303557266,2.1988427,4604.7,4603.6,6.17319497]
[1756303557476,0.02714617,4604.7,4603.7,2.17216011]
[1756303557861,2.19885557,4604.7,4603.5,4.001]
[1756303558054,2.17181623,4604.5,4603.7,2.17216415]
[1756303558255,0.21989624,4604.4,4603.7,2.17216415]
[1756303558470,0.21989624,4604.4,4603.3,4.001]
[1756303558676,0.34003564,4604.5,4604.0,2.17201881]
[1756303558975,0.34003564,4604.5,4604.4,2.17183563]
[1756303559352,0.022,4604.8,4604.7,2.17169413]
[1756303559975,0.022,4604.8,4604.7,6.17169413]
[1756303560961,0.022,4604.8,4604.7,6.17069413]
[1756303561471,0.022,4604.8,4604.7,6.5984674]
[1756303562071,0.022,4604.8,4604.7,2.17169413]
[1756303562276,0.022,4604.8,4604.7,6.17069413]
[1756303562462,7.022,4604.8,4604.2,2.17189442]
[1756303562662,0.02714617,4604.7,4603.8,0.02]
[1756303562863,3.0,4604.7,4603.8,0.02]
[1756303563553,3.0,4604.7,4604.2,2.17189522]
[1756303563754,3.0,4604.7,4603.8,4.018]
[1756303564175,3.0,4604.7,4604.3,2.17185751]
[1756303564379,3.0,4604.7,4604.4,2.1717957]
[1756303564747,3.0,4604.7,4604.2,2.17188574]
[1756303565177,3.0,4604.7,4604.3,2.17184433]
[1756303565382,3.0,4604.7,4604.4,2.17179948]
[1756303565551,3.0,4604.7,4604.2,2.17188696]
[1756303565748,3.0,4604.7,4604.0,6.16997987]
[1756303565952,3.0,4604.7,4604.1,2.17197715]
[1756303566184,3.0,4604.7,4604.5,2.17177522]
[1756303566379,3.0,4604.7,4604.6,2.1717413]
[1756303566582,3.0,4604.7,4604.4,2.17179158]
[1756303566780,7.022,4604.8,4603.9,2.1720715]
[1756303566986,7.022,4604.8,4604.7,2.17169413]
[1756303567714,0.022,4604.8,4604.7,2.17169413]
[1756303569206,0.022,4604.8,4604.2,3.0]
[1756303569499,0.022,4604.8,4604.2,3.996]
[1756303569707,0.022,4604.8,4604.7,2.17169413]
[1756303570208,0.022,4604.8,4604.7,2.60603976]
[1756303571009,0.022,4604.8,4604.7,6.16669413]
[1756303571202,0.022,4604.8,4604.7,2.17169413]
[1756303571788,0.0212,4604.8,4604.1,2.17194118]
[1756303571989,0.0212,4604.8,4603.9,2.1720715]
[1756303572166,0.0212,4604.8,4603.8,0.001]
[1756303572372,0.36597809,4604.7,4603.8,0.001]
[1756303572570,3.20156222,4604.6,4603.8,0.001]
[1756303572817,0.22870957,4604.5,4603.8,2.17307515]
[1756303573114,0.02714735,4604.5,4603.8,2.17307515]
[1756303573271,2.17183622,4604.4,4603.8,0.001]
[1756303573613,0.36718418,4604.4,4603.9,3.994]
[1756303573765,0.36718418,4604.4,4603.8,0.001]
[1756303573766,0.02714853,4604.3,4603.8,0.001]
[1756303573968,0.02714617,4604.7,4603.9,2.17202846]
[1756303574265,2.1720715,4603.9,4603.8,0.001]
[1756303574473,0.22880588,4603.9,4603.8,0.001]
[1756303574811,0.20165499,4603.9,4603.8,0.001]
[1756303575015,2.1720715,4603.9,4603.8,0.001]
[1756303575214,2.40087738,4603.9,4603.8,0.001]
[1756303575419,5.60305658,4603.9,4603.8,0.001]
[1756303575614,5.57590569,4603.9,4603.8,0.001]
[1756303576006,9.56890569,4603.9,4603.8,0.001]
[1756303577808,10.22978778,4603.9,4603.8,0.001]
[1756303578120,10.56990972,4603.9,4603.8,0.001]
[1756303578629,9.90890972,4603.9,4603.8,0.001]
[1756303579108,5.91690972,4603.9,4603.8,0.001]
[1756303579412,9.90890972,4603.9,4603.8,0.001]
[1756303579628,0.74483822,4603.9,4603.8,0.001]
[1756303579784,0.54248008,4603.9,4603.8,2.47151868]
[1756303580116,0.20235814,4603.9,4603.8,2.47151868]
[1756303580333,0.0212,4604.8,4603.8,0.76377214]
[1756303580534,0.34003948,4604.7,4604.2,2.17188434]
[1756303580691,0.22936894,4604.6,4604.3,2.17186937]
[1756303580885,0.22936894,4604.6,4603.8,0.2994]
[1756303580886,0.20222218,4604.6,4603.8,0.2994]
[1756303581111,0.20222218,4604.6,4604.5,2.17178846]
[1756303581893,0.20222218,4604.6,4603.9,6.16304586]
[1756303582104,0.20222218,4604.6,4603.9,2.17204586]
[1756303582437,0.20222218,4604.6,4604.3,2.17183922]
[1756303582803,0.20222218,4604.6,4603.8,0.2994]
[1756303582996,0.20222218,4604.6,4603.8,0.54656159]
[1756303583198,0.20222218,4604.6,4604.5,2.17178846]
[1756303583442,7.20222218,4604.6,4603.9,2.1720715]
[1756303583599,7.20222218,4604.6,4603.8,0.2994]
[1756303583600,0.22936953,4604.5,4603.8,0.2994]
[1756303583799,3.22936953,4604.5,4603.8,0.2994]
[1756303584104,0.40435389,4604.4,4603.8,0.2994]
[1756303584305,3.02714735,4604.5,4603.8,0.2994]
[1756303584306,2.17202717,4604.0,4603.8,0.2994]
[1756303584493,0.20212178,4603.9,4603.8,0.2994]
[1756303584831,0.02714971,4604.1,4603.8,0.2994]
[1756303585003,3.02714971,4604.1,4603.8,0.2994]
[1756303585325,0.404252,4604.0,4603.8,0.2994]
[1756303585506,0.20212178,4603.9,4603.8,0.2994]
[1756303585704,2.1720715,4603.9,4603.8,0.2994]
[1756303585915,2.40134417,4603.9,4603.8,0.2994]
[1756303586229,0.22927267,4603.9,4603.8,0.2994]
[1756303586432,0.20212178,4603.9,4603.8,0.2994]
[1756303586724,0.02714971,4604.1,4603.8,0.2994]
[1756303586725,2.40126588,4604.1,4603.8,0.2994]
[1756303586905,3.40422151,4604.0,4603.8,0.2994]
[1756303587102,0.20212178,4603.9,4603.8,0.2994]
[1756303587327,0.20210462,4604.4,4604.0,2.17200035]
[1756303587555,0.20210777,4604.3,4603.9,2.17206915]
[1756303587755,0.22925374,4604.2,4603.8,0.2994]
[1756303587926,0.20210462,4604.1,4603.8,2.47148009]
[1756303588126,0.20210462,4604.0,4603.8,0.2994]
[1756303588458,0.20210462,4603.9,4603.8,2.47151497]
[1756303589739,7.0,4604.0,4603.8,2.47151497]
[1756303589938,7.0,4604.0,4603.8,0.2994]
[1756303590250,0.20211481,4603.9,4603.8,0.2994]
[1756303590639,12.4013372,4603.9,4603.8,0.2994]
[1756303590847,10.40421068,4603.9,4603.8,0.2994]
[1756303591469,10.20211481,4603.9,4603.8,0.2994]
[1756303591777,10.20211481,4603.9,4603.8,2.47151868]
[1756303592272,10.20211481,4603.9,4603.8,0.2994]
[1756303592460,10.20211481,4603.9,4603.8,2.47151868]
[1756303592965,10.20211481,4603.9,4603.8,0.2994]
[1756303593438,7.20211481,4603.9,4603.8,2.47151868]
[1756303594640,7.20218581,4603.9,4603.8,2.47151868]
[1756303595051,7.20137833,4603.9,4603.8,2.47151868]
[1756303595457,7.20137625,4603.9,4603.8,2.47151868]
[1756303596336,7.20137625,4603.9,4603.8,0.2994]
[1756303596337,7.2013294,4603.9,4603.8,0.2994]
[1756303596856,7.2013294,4603.9,4603.8,2.47151868]
[1756303597057,6.9992,4603.9,4603.8,2.47151868]
[1756303597226,6.9992,4603.9,4603.8,0.2994]
[1756303597426,7.20131953,4603.9,4603.8,0.2994]
[1756303598088,7.20131953,4603.9,4603.8,2.47151868]
[1756303598749,7.20131953,4603.9,4603.8,0.2994]
[1756303599154,7.20131953,4603.9,4603.8,2.47151868]
[1756303599380,0.0212,4604.8,4604.7,2.17169413]
[1756303599587,7.0204,4604.8,4604.7,2.17169413]
[1756303600290,0.0212,4604.8,4604.7,6.31801125]
[1756303602188,0.002,4605.3,4605.2,2.17145835]
[1756303602359,0.002,4605.3,4605.2,6.15345835]
[1756303602561,0.002,4605.3,4605.2,7.15305703]
[1756303602999,0.002,4605.3,4605.2,7.89865703]
[1756303603285,1e-08,4605.3,4605.2,7.89865703]
[1756303603485,1e-08,4605.3,4605.2,8.55865703]
[1756303603688,1e-08,4605.3,4605.2,11.55865703]
[1756303603890,1e-08,4605.8,4605.7,2.83122261]
[1756303604089,1e-08,4605.8,4605.7,7.33141058]
[1756303604388,1e-08,4605.8,4605.7,10.31247429]
[1756303605488,1e-08,4605.8,4605.7,5.67147429]
[1756303605698,1e-08,4605.8,4605.7,6.65147429]
[1756303606461,1e-08,4605.8,4605.7,7.31147429]
[1756303606775,0.002,4606.4,4605.7,6.65147429]
[1756303607088,0.002,4606.4,4606.3,2.83093979]
[1756303607295,0.002,4606.4,4606.3,4.50093979]
[1756303607498,0.002,4606.4,4606.3,8.47993979]
[1756303608574,1e-08,4606.4,4606.3,11.47993979]
[1756303608965,0.119033,4610.1,4607.7,2.83028018]
[1756303609268,3.22849114,4610.0,4607.7,9.06325599]
[1756303609465,1e-08,4607.8,4607.7,9.04434326]
[1756303611892,1e-08,4607.8,4607.7,12.20439218]
[1756303612299,1e-08,4607.8,4607.7,8.22639218]
[1756303612704,1e-08,4607.8,4607.7,5.22639218]
[1756303612862,1e-08,4607.8,4607.7,9.20139218]
[1756303614211,1e-08,4607.8,4607.7,8.54139218]
[1756303614576,1e-08,4607.8,4607.7,8.54039218]
[1756303614787,1e-08,4607.8,4607.7,9.20039218]
[1756303615704,1e-08,4607.8,4607.7,12.20039218]
[1756303616393,1e-08,4607.8,4607.7,5.22639218]
[1756303616588,1e-08,4607.8,4607.7,3.84028018]
[1756303616799,1e-08,4607.8,4607.7,7.81328018]
[1756303617307,1e-08,4607.8,4606.8,0.02]
[1756303617614,1e-08,4607.8,4606.9,3.972]
[1756303617814,1e-08,4607.8,4607.4,2.17041212]
[1756303618181,1e-08,4607.8,4607.3,3.972]
[1756303618518,1e-08,4607.8,4607.7,2.17028018]
[1756303618704,1e-08,4607.8,4607.7,6.14228018]
[1756303619217,0.03920001,4608.8,4608.7,2.16980927]
[1756303619521,0.03920001,4608.8,4608.6,3.972]
[1756303619723,0.03920001,4608.8,4608.5,2.16986834]
[1756303619913,0.03920001,4608.8,4608.5,3.971]
[1756303620112,0.03920001,4608.8,4608.7,2.16980927]
[1756303620487,0.04120001,4608.8,4608.7,3.00087836]
[1756303620687,0.04120001,4608.8,4608.7,3.01977931]
[1756303620990,0.04120001,4608.8,4608.7,3.67977931]
[1756303621188,1e-08,4608.8,4608.7,3.67977931]
[1756303621391,0.02,4609.8,4609.7,2.82933856]
[1756303621615,0.02,4609.8,4609.7,8.96921352]
[1756303622121,0.02,4609.8,4609.7,9.12891605]
[1756303622628,0.02,4610.8,4610.7,2.16886806]
[1756303622792,0.02,4610.8,4610.7,6.15774548]
[1756303622992,0.02,4610.8,4610.7,6.13886806]
[1756303623196,0.02,4610.8,4610.7,2.16886806]
[1756303623402,0.02,4610.8,4610.7,6.13786806]
[1756303623843,0.02,4610.8,4610.5,6.13792038]
[1756303623992,0.02,4610.8,4610.5,6.13795422]
[1756303624191,0.02,4610.8,4610.5,3.969]
[1756303624393,0.02,4610.8,4610.5,6.1379503]
[1756303624689,0.02,4610.8,4609.8,1.669]
[1756303624889,0.02,4610.8,4610.7,2.16886806]
[1756303625122,0.02,4610.8,4610.7,6.13786806]
[1756303625528,0.02,4610.8,4610.6,3.968]
[1756303625727,0.02,4610.8,4609.9,2.16924445]
[1756303626033,0.02,4610.8,4610.7,2.16886806]
[1756303626416,0.02,4610.8,4610.7,2.18774548]
[1756303626724,0.02,4610.8,4610.7,6.96833692]
[1756303627194,0.02,4610.8,4610.7,8.63733692]
[1756303628253,1e-08,4610.8,4610.7,5.33033692]
[1756303628527,1e-08,4610.8,4610.7,12.29733692]
[1756303629229,1e-08,4610.8,4610.7,8.33033692]
[1756303629425,1e-08,4610.8,4610.7,12.29633692]
[1756303629992,1e-08,4610.8,4610.7,8.33033692]
[1756303630198,1e-08,4610.8,4610.7,12.29533692]
[1756303631233,1e-08,4610.8,4610.7,3.83786806]
[1756303631446,1e-08,4610.8,4610.7,7.80286806]
[1756303632034,1e-08,4610.8,4610.7,8.46286806]
[1756303632356,1e-08,4610.8,4610.7,11.46286806]
[1756303632578,1e-08,4610.8,4610.7,11.80233206]
[1756303632779,0.33943591,4612.7,4611.7,0.66]
[1756303632980,0.02,4612.8,4612.7,2.16792767]
[1756303633169,0.02,4612.8,4612.7,6.81078158]
[1756303633478,0.02,4612.8,4612.7,6.79192767]
[1756303634066,0.02,4612.8,4612.7,2.16792767]
[1756303634442,0.02,4612.8,4612.7,4.16420414]
[1756303634660,0.02,4612.8,4612.7,6.33213181]
[1756303634858,0.02,4612.8,4612.7,0.20120414]
[1756303635069,0.02,4612.8,4612.7,6.13092767]
[1756303635388,0.02,4612.8,4612.7,3.962]
[1756303635787,0.02,4612.8,4612.5,3.962]
[1756303636483,0.02,4612.8,4612.6,3.962]
[1756303636845,0.02,4612.8,4610.7,5.47009152]
[1756303637047,2.16815363,4612.3,4610.8,0.20117347]
[1756303637246,0.20108411,4612.2,4610.9,2.98217347]
[1756303637480,0.20113233,4612.1,4612.0,2.1682431]
[1756303637706,0.02,4612.8,4612.0,6.1292431]
[1756303637864,0.02,4612.8,4612.0,3.961]
[1756303638286,0.0470985,4612.8,4612.0,3.961]
[1756303638591,0.33941772,4612.7,4612.0,3.961]
[1756303638794,0.20117158,4612.6,4612.0,6.12924775]
[1756303639091,0.20117158,4612.6,4612.0,6.12924129]
[1756303639264,0.20117158,4612.6,4612.0,3.961]
[1756303639464,0.20117158,4612.6,4612.0,6.12925008]
[1756303639709,0.20117158,4612.6,4612.1,2.16820647]
[1756303639992,2.52429099,4612.5,4611.9,3.961]
[1756303640200,0.20117158,4612.4,4611.9,3.961]
[1756303640359,0.20117158,4612.4,4612.0,0.01886136]
[1756303640565,0.33941772,4612.7,4612.1,2.16816617]
[1756303641093,6.9992,4612.6,4612.2,2.16815444]
[1756303641461,6.9992,4612.6,4611.9,2.16829898]
[1756303641796,3.0,4612.5,4611.6,2.16840612]
[1756303641994,3.02710027,4612.5,4610.8,0.02]
[1756303642161,3.02710027,4612.5,4611.0,2.16868953]
[1756303642162,2.1683238,4611.9,4611.0,2.16868953]
[1756303642494,2.16839808,4611.7,4610.8,2.18881184]
[1756303642693,2.16839808,4611.7,4611.0,3.959]
[1756303642873,3.0,4611.7,4610.9,3.959]
[1756303643069,3.0,4612.3,4611.0,0.01887198]
[1756303643257,0.33948276,4611.7,4610.9,3.959]
[1756303643598,0.33948276,4611.7,4611.3,2.16857427]
[1756303643784,0.33868276,4611.7,4611.3,3.958]
[1756303643986,0.33868276,4611.7,4611.6,2.16844479]
[1756303644981,3.0,4612.3,4611.6,2.16844479]
[1756303645291,3.0,4612.3,4611.6,3.958]
[1756303645492,3.0,4612.3,4611.8,2.16835075]
[1756303645697,3.0,4612.3,4611.6,3.958]
[1756303645698,1.67,4613.3,4611.9,2.16830335]
[1756303646000,1.67,4613.3,4612.7,2.16792767]
[1756303646168,0.002,4613.3,4612.7,2.16792767]
[1756303646494,2.16965099,4613.3,4612.7,3.957]
[1756303646687,0.002,4613.3,4612.7,3.957]
[1756303646884,0.002,4613.3,4612.7,6.12492767]
[1756303647386,0.002,4613.3,4612.4,3.957]
[1756303647560,0.002,4613.3,4612.5,2.16801963]
[1756303647760,0.002,4613.3,4612.4,3.957]
[1756303648392,0.02909557,4613.3,4611.6,1.668]
[1756303648695,2.16793419,4612.7,4611.8,2.16831126]
[1756303648994,3.0,4612.5,4611.8,2.16833985]
[1756303649391,0.33940927,4612.6,4611.7,3.956]
[1756303649704,0.33940927,4612.6,4611.6,1.668]
[1756303649887,2.16830067,4612.0,4610.9,1.668]
[1756303650108,0.33940927,4612.6,4611.2,2.16859]
[1756303650285,2.16806868,4612.4,4611.0,3.956]
[1756303650465,0.02710027,4612.5,4611.0,3.956]
[1756303650671,0.33945396,4612.3,4611.1,0.01886811]
[1756303650895,0.33945396,4612.3,4611.0,3.956]
[1756303651191,5.19527551,4612.2,4611.0,3.956]
[1756303651393,5.16820144,4612.2,4611.1,3.955]
[1756303651588,0.33945396,4612.3,4611.1,3.955]
[1756303651782,0.33945396,4612.3,4612.0,2.16821008]
[1756303651965,0.33945396,4612.3,4612.2,2.16816269]
[1756303652165,0.33945396,4612.3,4612.2,6.12316269]
[1756303652403,6.9992,4612.7,4612.6,2.16797467]
[1756303652710,0.022,4612.8,4612.6,2.16796845]
[1756303652913,0.022,4612.8,4612.5,2.16800595]
[1756303653081,0.022,4612.8,4612.7,2.16792767]
[1756303653776,0.022,4612.8,4611.9,2.16830373]
[1756303653970,0.022,4612.8,4612.7,2.16792767]
[1756303654882,0.022,4612.8,4610.8,3.339404]
[1756303655119,0.022,4612.8,4611.6,3.954]
[1756303655268,0.022,4612.8,4611.7,3.97286222]
[1756303655469,0.022,4612.8,4612.3,2.1680783]
[1756303655802,0.022,4612.8,4611.9,2.16830373]
[1756303656003,0.022,4612.8,4612.6,2.16795152]
[1756303656217,0.022,4612.8,4612.7,2.16792767]
[1756303656418,0.022,4612.8,4611.9,0.61223037]
[1756303656713,0.022,4612.8,4612.4,2.16806551]
[1756303657076,0.022,4612.8,4612.0,3.953]
[1756303657473,0.022,4612.8,4612.3,2.1680966]
[1756303657685,0.24097495,4612.8,4612.0,3.953]
[1756303657884,0.022,4612.8,4612.4,2.16806245]
[1756303658119,0.022,4612.8,4612.6,2.16792882]
[1756303658304,0.022,4612.8,4612.0,3.953]
[1756303658809,0.022,4612.8,4612.1,3.953]
[1756303659015,0.33940289,4612.7,4612.1,3.953]
[1756303659192,0.33614029,4612.6,4611.2,2.16863289]
[1756303659388,9.9992,4612.5,4610.4,3.0]
[1756303659684,9.9992,4612.5,4610.1,2.1691248]
[1756303659685,3.0,4612.2,4610.9,3.952]
[1756303659891,3.0,4612.0,4611.5,2.16848726]
[1756303660091,6.9992,4611.9,4610.9,3.952]
[1756303660291,6.9992,4611.9,4611.0,2.16872595]
[1756303660618,3.0,4611.8,4610.9,2.16873918]